Cogmind - Beta 15 *** ADVENTURER MODE // 2025.08.19 @ 18:49:12 Player: Salamander Avem Result: Destroyed by D-53 Grenadier with Mini Grenade Launcher Performance ------------- Evolutions (1) 500 Regions Visited (3) 600 Robots Destroyed (11) 55 Value Destroyed (301) 301 Prototype IDs (0) 0 Alien Tech Used (0) 0 Bonus (0) 0 TOTAL SCORE: 1456 Bonus ------- None Cogmind --------- Core Integrity 0/400 Matter 300/300 Energy 248/250 System Corruption 0% Temperature Cool (0) Movement Core (50) Location -9/Mines Parts ------- > --- POWER (2) -------- (None) > --- PROPULSION (2) --- (None) > --- UTILITY (3) ------ Medium Battery > --- WEAPON (2) ------- Light Assault Rifle > --- INVENTORY (5) ---- (None) Peak State ------------ > --- POWER ------------ Light Ion Engine Backup Power I > --- PROPULSION ------- Wheel Backup Propulsion I > --- UTILITY ---------- Heat Sink Seismic Detector > --- WEAPON ----------- Assault Rifle Grenade Launcher > --- INVENTORY -------- Medium Battery [Rating: 8] Favorites ----------- Power Light Ion Engine Engine Light Ion Engine Propulsion Wheel Leg Aluminum Leg Wheel Wheel Hover Unit Backup Propulsion I Flight Unit Flight Unit Utility Seismic Detector Device Seismic Detector Storage Medium Battery Protection Medium Armor Plating Weapon Assault Rifle Energy Gun Small Laser Ballistic Gun Assault Rifle Launcher Grenade Launcher Build | -11 -10 -9 -9 ------- Run | Yrd Mat Mat Min Slots Evolved 2 | . . 2 . Power 1 | . . 1 . Propulsion . | . . . . Utility 1 | . . 1 . Weapon . | . . . . Parts Attached 14 | 6 1 3 4 Power 2 | 1 . . 1 Engine 2 | 1 . . 1 Core . | . . . . Reactor . | . . . . Propulsion 4 | 2 . 1 1 Treads . | . . . . Leg 1 | . . 1 . Wheel 2 | 2 . . . Hover . | . . . . Flight 1 | . . . 1 Utility 4 | 2 . 2 . Device 2 | 2 . . . Storage 1 | . . 1 . Processor . | . . . . Hackware . | . . . . Protection 1 | . . 1 . Artifact . | . . . . Weapon 4 | 1 1 . 2 Energy Gun 1 | . . . 1 Energy Cannon . | . . . . Ballistic Gun 2 | 1 . . 1 Ballistic Cannon . | . . . . Launcher 1 | . 1 . . Special Weapon . | . . . . Impact Weapon . | . . . . Slashing Weapon . | . . . . Piercing Weapon . | . . . . Special Melee Weapon . | . . . . Unidentified Prototypes . | . . . . Parts Lost 14 | . 1 10 3 Power 3 | . . 2 1 Propulsion 5 | . 1 3 1 Utility 3 | . . 3 . Weapon 3 | . . 2 1 Highest Loss Streak 4 | . 1 4 3 To Critical Strikes . | . . . . Average Backups . | . . . . Power . | . . . . Propulsion . | . . . . Utility . | . . . . Weapon . | . . . . Tool/Special . | . . . . Unused Backups 1 | 1 . . . Power . | . . . . Propulsion 1 | 1 . . . Utility . | . . . . Weapon . | . . . . Tool/Special . | . . . . Average Slot Usage (%) 58 | . 91 58 20 Engine 10 | . 14 12 2 Leg 2 | . . 4 . Wheel 7 | . 22 2 . Hover 3 | . . 7 . Device 15 | . 28 16 . Storage 5 | . . 5 11 Energy Gun 1 | . . . 4 Ballistic Gun 7 | . 14 5 2 Launcher 4 | . 11 2 . Peak Build Rating 8 | 6 7 8 5 Average Rating 4 | 3 6 5 1 On Entrance 3 | . 6 6 1 Naked Turns . | . . . . Heaviest Build 11 | 7 10 11 7 Greatest Support 20 | 20 20 10 4 Greatest Overweight (x) 2 | . . 2 1 Average Overweight (x) . | . . . . Largest Inventory Capacity 5 | 5 5 5 5 Average Capacity 5 | 5 5 5 5 Most Carried 2 | 2 1 2 2 Average Carried . | . . . . Final Capacity 5 | 5 5 5 5 Final Carried 1 | . 1 . . Class Distribution -------------------- 100% | Mutant Dominant Class ---------------- Mutant | -10/Materials Mutant | -9/Materials Mutant | -9/Mines Resources | -11 -10 -9 -9 ----------- Run | Yrd Mat Mat Min Matter Collected 453 | 290 . 120 43 Remotely . | . . . . Salvage Created 369 | 49 133 145 42 Parts 20 | 4 6 5 5 Haulers Intercepted . | . . . . Recyclers Shooed 2 | . . 1 1 Parts Field Recycled . | . . . . Retrieved Matter . | . . . . Parts Self-Destructed . | . . . . Prevented . | . . . . Kills | -11 -10 -9 -9 ------- Run | Yrd Mat Mat Min Combat Hostiles Destroyed 10 | 1 3 3 3 Guns 10 | 1 3 3 3 Classes Destroyed 3 | 2 . . 1 Tunneler 1 | 1 . . . Swarmer 3 | . . . 3 Grunt 7 | 1 3 3 . Best Kill Streak 3 | 2 2 3 3 Combat Bots Only 3 | 1 2 3 3 Max Kills in Single Turn 1 | 1 1 1 1 Gunslinging . | . . . . Exploded . | . . . . Melee . | . . . . Uniques/NPCs Destroyed . | . . . . Combat | -11 -10 -9 -9 -------- Run | Yrd Mat Mat Min Hostile Shots Fired 158 | 7 18 117 16 Missed 57 | 1 9 47 . Hits 101 | 6 9 70 16 Projectile 101 | 6 9 70 16 AOE 9 | . . . 9 Critical Strikes 2 | . 1 1 . Damage Taken 1207 | 49 109 713 336 Core 437 | 8 23 217 189 Absorbed by Shields . | . . . . Ignored by Resistances 353 | 16 30 215 92 Core Remaining (%) 91 | 96 87 . . Volleys Fired 62 | 10 24 20 8 Largest 2 | 1 1 1 2 Hottest 60 | 20 30 20 60 Shots Fired 63 | 10 24 20 9 Gun 62 | 10 23 20 9 Cannon . | . . . . Launcher 1 | . 1 . . Special . | . . . . Kinetic 54 | 10 23 20 1 Thermal 8 | . . . 8 Explosive 1 | . 1 . . Electromagnetic . | . . . . Robot Hit Streak 10 | 10 7 9 10 Robot Miss Streak 2 | . 1 2 2 Penetration Max . | . . . . Secondary Targets . | . . . . Shots Hit Robots 51 | 10 17 17 7 Core Hits 25 | 3 7 9 6 Critical Kills . | . . . . Critical Parts Destroyed . | . . . . Critical Strikes . | . . . . Melee Attacks . | . . . . Impact . | . . . . Slashing . | . . . . Piercing . | . . . . Sneak Attacks . | . . . . Combat Hostiles . | . . . . Follow-up Attacks . | . . . . Damage Inflicted 700 | 123 249 234 94 Guns 674 | 123 242 234 75 Cannons . | . . . . Explosions . | . . . . Melee . | . . . . Ramming 26 | . 7 . 19 Kinetic 607 | 123 242 234 8 Thermal 67 | . . . 67 Explosive . | . . . . Electromagnetic . | . . . . Impact . | . . . . Slashing . | . . . . Piercing . | . . . . Highest Corruption 1 | . 1 . . Average Corruption 1 | . 1 . . Corruption Purged . | . . . . Corruption Blocked . | . . . . Overload Shots . | . . . . Overflow Damage . | . . . . Projectiles . | . . . . Explosions . | . . . . Melee . | . . . . Knockbacks 1 | . 1 . . Impact 1 | . 1 . . Kinetic . | . . . . Secondary . | . . . . Self-Inflicted Damage 11 | . 3 . 8 Shots . | . . . . Rammed 6 | . 1 . 5 Targets Rammed 6 | . 1 . 5 Kicked . | . . . . Crushed . | . . . . Highest Temperature 16 | . 7 8 16 Average Temperature 9 | . 7 8 12 Received Heat Transfer 642 | 36 96 510 . Siege Activations . | . . . . Martial Activations . | . . . . Shielding Activations . | . . . . Robots Disrupted . | . . . . Combat Hostiles . | . . . . Robots Corrupted . | . . . . Combat Hostiles . | . . . . Parts Fried . | . . . . Impact Corruptions . | . . . . Robots Melted . | . . . . Combat Hostiles . | . . . . Parts Melted . | . . . . Heat Transferred 150 | . . . 150 Parts Sabotaged . | . . . . Parts Stolen . | . . . . Parts Stripped . | . . . . Power Chain Reactions . | . . . . Alert | -11 -10 -9 -9 ------- Run | Yrd Mat Mat Min Maximum Alert Level . | . . . . Low Security (%) 100 | 100 100 100 100 Level 1 . | . . . . Level 2 . | . . . . Level 3 . | . . . . Level 4 . | . . . . Level 5 . | . . . . High Security . | . . . . Max Security . | . . . . Peak Influence 70 | 25 40 30 70 Initial 8 | . 8 3 . Average 10 | 5 14 5 17 Influence Increases 252 | 25 82 75 70 Destroy 0b10 Robot/C 200 | 20 60 60 60 Destroy 0b10 Robot/NC 5 | 5 . . . Destroy Leader 30 | . 10 10 10 Successful Hack 5 | . . 5 . Destroy Structure 12 | . 12 . . Influence Decreases 232 | 10 87 85 50 Entered New Map 14 | . 7 7 . Time Decay 166 | 10 78 58 20 Lost Part 52 | . 2 20 30 Squads Dispatched 1 | . . . 1 Investigation 1 | . . . 1 Extermination . | . . . . Reinforcement . | . . . . Assault . | . . . . Garrison . | . . . . Intercept . | . . . . Searches Triggered . | . . . . Construction Impeded . | . . . . Haulers Reinforced . | . . . . Active Scanning Responses . | . . . . Cargo Convoy Interrupts . | . . . . Stealth | -11 -10 -9 -9 --------- Run | Yrd Mat Mat Min Distress Signals 3 | . 1 1 1 Communications Jammed . | . . . . Distress Signals . | . . . . Times Spotted 21 | 1 5 10 5 Peak Tracking Total 6 | 1 4 6 3 Tactical Retreats . | . . . . Traps | -11 -10 -9 -9 ------- Run | Yrd Mat Mat Min Traps Triggered . | . . . . Indirectly . | . . . . Trap Hack Attempts . | . . . . Triggered . | . . . . Disarmed . | . . . . Reprogrammed . | . . . . Reused . | . . . . Traps Extracted . | . . . . Installed . | . . . . Triggered . | . . . . Machines | -11 -10 -9 -9 ---------- Run | Yrd Mat Mat Min Machines Disabled . | . . . . Max in Single Turn . | . . . . Machines Repaired . | . . . . Machines Dismantled . | . . . . Machines Sabotaged . | . . . . Overloaded Fab Kills . | . . . . Hacking | -11 -10 -9 -9 --------- Run | Yrd Mat Mat Min Machines Accessed 3 | . 1 1 1 Terminals . | . . . . Fabricators . | . . . . Repair Stations 1 | . . 1 . Recycling Units 1 | . 1 . . Scanalyzers . | . . . . Garrison Access . | . . . . Total Hacks 5 | . 2 2 1 Successful 4 | . 2 1 1 Failed 1 | . . 1 . Catastrophic . | . . . . Database Lockouts . | . . . . Manual . | . . . . Terminals . | . . . . Fabricators . | . . . . Repair Stations 2 | . . 2 . Recycling Units 2 | . 2 . . Scanalyzers . | . . . . Garrison Access . | . . . . Terminal Hacks 1 | . . . 1 Open Door 1 | . . . 1 Fabricator Hacks . | . . . . Repair Station Hacks 1 | . . 1 . Refit 1 | . . 1 . Recycling Unit Hacks 2 | . 2 . . Process 1 | . 1 . . Report Inventory 1 | . 1 . . Scanalyzer . | . . . . Garrison Access Hacks . | . . . . Unauthorized Hacks . | . . . . Terminals . | . . . . Fabricators . | . . . . Repair Stations . | . . . . Recycling Units . | . . . . Scanalyzers . | . . . . Garrison Access . | . . . . Data Cores Recovered . | . . . . Used . | . . . . Hacking Detections 2 | . 1 1 . Full Trace Events . | . . . . Feedback Events . | . . . . Feedback Blocked . | . . . . Robot Schematics Acquired . | . . . . Robots Built . | . . . . Authchips . | . . . . Time . | . . . . Total Robot Build Rating . | . . . . Part Schematics Acquired . | . . . . Parts Built . | . . . . Authchips . | . . . . Time . | . . . . Total Part Build Rating . | . . . . Parts Repaired . | . . . . Time . | . . . . Parts Recycled . | . . . . Recycled Matter 17 | . 17 . . Retrieved Matter . | . . . . Retrieved Components . | . . . . Parts Scanalyzed . | . . . . Part Schematics Acquired . | . . . . Parts Damaged . | . . . . Bothacking | -11 -10 -9 -9 ------------ Run | Yrd Mat Mat Min Used RIF Installer . | . . . . Robots Hacked . | . . . . Non-combat . | . . . . Combat . | . . . . Robot Hacks Applied . | . . . . Relay Couplers Released . | . . . . Fabnet Peak Effective % . | . . . . Robots Rewired . | . . . . Allies Hacked . | . . . . Hacks Repelled . | . . . . Allies | -11 -10 -9 -9 -------- Run | Yrd Mat Mat Min Total Allies . | . . . . Largest Group . | . . . . Highest-Rated Group . | . . . . Highest-Rated Ally . | . . . . Total Orders . | . . . . Ally Attacks . | . . . . Total Damage . | . . . . Kills . | . . . . Allies Corrupted . | . . . . Allies Melted . | . . . . Intel | -11 -10 -9 -9 ------- Run | Yrd Mat Mat Min Active Infowar (turns) 407 | 10 169 228 . Seismic 407 | 10 169 228 . Robot Analysis Total . | . . . . Derelict Logs Recovered . | . . . . Drone Launches . | . . . . Drone Recoveries . | . . . . Exploration | -11 -10 -9 -9 ------------- Run | Yrd Mat Mat Min Turns Passed 712 | 93 169 301 149 Spaces Moved 646 | 82 147 202 215 Core 237 | 19 . 21 197 Treads . | . . . . Legs 103 | . . 103 . Wheels 229 | 63 147 19 . Hover 59 | . . 59 . Flight 18 | . . . 18 Fastest Speed 40 | 50 80 50 40 Average Speed 85 | 73 80 126 55 Slowest Speed 165 | 80 80 165 120 Overloaded Moves . | . . . . Propulsion Burnouts . | . . . . Robots Hopped . | . . . . Potential Cave-ins 9 | . . . 9 Cave-ins Triggered . | . . . . Exploration Rate (%) 18 | 5 24 17 29 Regions Visited 3 Branch Regions 1 Pre-discovered Areas . | . . . . Known Exits Taken . | . . . . Unknown Exits Taken 3 | 1 1 1 . Scrap Searched . | . . . . Spaces Dug . | . . . . Terrain Destroyed 12 | . 12 . . Melee . | . . . . Projectile . | . . . . AOE 12 | . 12 . . Terrain Rammed . | . . . . Walls Destroyed . | . . . . Machines Disabled . | . . . . Actions | -11 -10 -9 -9 --------- Run | Yrd Mat Mat Min Total 741 | 105 174 226 236 Wait . | . . . . Move 643 | 81 146 201 215 Hop . | . . . . Pick Up 15 | 7 2 2 4 Fast Attach . | . . . . Attach 14 | 6 1 3 4 Detach . | . . . . Swap . | . . . . Drop 1 | 1 . . . Fire 62 | 10 24 20 8 Melee . | . . . . Ram 6 | . 1 . 5 Kick . | . . . . Crush . | . . . . Escape Stasis . | . . . . Rewire . | . . . . Trap . | . . . . Miscellaneous . | . . . . Route ------- -11/Scrapyard -10/Materials -9/Materials -9/Mines History --------- Turn | Location | Event 2 | -11/Scrapyard | Met Revision 17 50 | -11/Scrapyard | Discovered new exit (range 8) 94 | -11/Scrapyard | Entered Materials 250 | -10/Materials | Discovered new exit (range 8) 263 | -10/Materials | Entered another Materials area 263 | -9/Materials | Evolved 2 slots: Power x1, Utility x1 308 | -9/Materials | Build established: Mutant 522 | -9/Materials | Lost 4 parts (1p1n2u) 543 | -9/Materials | Discovered new exit (range 14) 563 | -9/Materials | Core integrity fell below 50% 564 | -9/Materials | Entered Mines 573 | -9/Mines | Met a Derelict bent on vengeance 594 | -9/Mines | Met a Derelict shopkeep closing up shop 695 | -9/Mines | Assembled infested the area 711 | -9/Mines | Core integrity fell below 20% 713 | -9/Mines | Destroyed by D-53 Grenadier with Mini Grenade Launcher Last Messages --------------- Slammed into R-06 Scavenger. ALERT: Infestation in the mines, dispatching Demolisher response squad. Slammed into T-07 Excavator. T-07 Excavator distress signal alerts nearby ally. C-30 ARC bursts open, deploying its payload. D-53 Grenadier unfolds itself. PN-1RG(g) destroyed. Open spaces previously occupied by now-destroyed walls and earth have a slight glow to them. Consecutive moves through these unstable areas may cause a cave-in, but only if doing so for extended periods. Tunneling a short distance between rooms is safe unless the area was destabilized by an explosion. Lgt. Ion Engine destroyed. The unstable cave ceiling collapses. Sml. Laser destroyed. Flight Unit destroyed. Map ----- +----------------------------------------------------+ | ????????## ##??# ##????????? | | ???????## ###????###?????????? | | ??###### ##??????????????????? | | ??# ##???????????????????? | | ??# ## #????????????????????? | | ??# #####????????????????????? | | ??# #????????????????????????? | | ??# #????????????????????????? | | ??# #????????????????????????? | | ??# #????????????????????????? | | ??# #????????????????????????? | | ??# #????????????????????????? | | ??# #????????????????????????? | | ??# #????????????????????????? | | ??# ####?????????????????????? | | ??# # ##????????????????????? | | ??# #????????????????????? | | ?## ##????????????????????? | | ?# ##?????????????""#?????? | | ?# ##???????????? X?????? | | ?## #??????????? ??????? | | ??# #?????????? ???? | | ??# #????????? ????? | | ??## #######?? ?????? | | ??# # # ### ???????? | | ??## @ # #?????????? | | ??# #?????????? | | ??# # #?????????? | | ??## d % #?????????? | | ??# d # #?????????? | | ??# # = #????????????? | | ??## #????????????? | | ???# #### ## ??????????? | | ??## #??#### #? ????????? | | ??# ##?????# #?? ???????? | | ??# ##??????# #??? ??????? | | ??# #???????# #???? ??????? | | ??# #???????# #????? #?????? | | ?## %##??????#[#?????? #?????? | | ?# ######## #??????? #?????? | | ?# % %= % %#??????????????? | | ?## ###########??????????????? | | ??####????????????????????????? | | ??????????????????????????????? | | | | | | | | | | | | | +----------------------------------------------------+ Best States ------------- Heat Dissipation 38 Energy Generation 14 Energy Capacity 275 Matter Stores 300 Matter Capacity 300 Sight Range 16 Terrain Scan Density 10 Armor Coverage 225 Resistance: KI 20 Resistance: TH 20 Resistance: EX 20 Resistance: EM 20 Resistance: I 20 Resistance: S 20 Resistance: P 20 Evasion (%) 62 Offensive Hacking 10 Item Schematics ----------------- None Robot Schematics ------------------ None Fabricated ------------ Nothing Repaired ---------- Nothing Alien Tech Used ----------------- None Achievements -------------- None Challenges ------------ None Game ------ Seed RefineryCentriumBeamcaster Manual? 0 Play Time 00:23:04 Cumulative 0.8 hours Start 2025.08.19 @ 16:52:14 End 2025.08.19 @ 18:49:12 Sessions 1 Manual Loads 0 Difficulty Adventurer Special Mode None Game No. 2 Rogue 0 Adventurer 2 Explorer 0 Win Type - Total 0 Types 0/0/0/0/0/0/0/0/0/0 Lore% 0 Gallery% 2 Achievement% 1 Wizard Run 0 Options --------- Layout 1 ASCII 0 Keyboard 0 Movement Mouse Keybinds 0 Fullscreen 1 Font 24/Smallcaps Map View 50x35 Zoom Use 0% Tactical HUD 0 Map Filters NONE Filters NONE Steam 1 RUN: 2ff6f5ff-09f9-45dc-8033-5e87d72461e8